[Event "*** Titled Tuesday Blitz"]
[Site "Chess.com"]
[Date "2020.04.14"]
[Round "7"]
[White "VinzentSpitzl"]
[Black "YumiBear"]
[Result "1-0"]
[WhiteElo "2371"]
[BlackElo "2513"]
[TimeControl "180+1"]
[EndTime "11:14:27 PDT"]
[Termination "VinzentSpitzl won on time"]

1. e4 {[%clk 0:03:00.9]} 1... c6 {[%clk 0:03:00.1]} 2. Nf3 {[%clk 0:03:00.1]}
2... d5 {[%clk 0:03:00.5]} 3. Nc3 {[%clk 0:03:00.2]} 3... Bg4 {[%clk 0:03:00]}
4. h3 {[%clk 0:03:00.1]} 4... Bxf3 {[%clk 0:02:56.5]} 5. Qxf3 {[%clk 0:03:01]}
5... e6 {[%clk 0:02:56.8]} 6. g3 {[%clk 0:02:57.5]} 6... g6 {[%clk 0:02:56.6]}
7. Bg2 {[%clk 0:02:53.3]} 7... Bg7 {[%clk 0:02:56.9]} 8. O-O {[%clk 0:02:50.5]}
8... Ne7 {[%clk 0:02:56.5]} 9. Rd1 {[%clk 0:02:42.4]} 9... d4 {[%clk 0:02:53.8]}
10. Ne2 {[%clk 0:02:39.3]} 10... Nd7 {[%clk 0:02:52.1]} 11. g4 {[%clk
0:02:31.8]} 11... h5 {[%clk 0:02:51.6]} 12. d3 {[%clk 0:02:26.7]} 12... hxg4
{[%clk 0:02:40.6]} 13. hxg4 {[%clk 0:02:23.5]} 13... c5 {[%clk 0:02:34.9]} 14.
Qg3 {[%clk 0:02:13.5]} 14... Qb6 {[%clk 0:02:22.7]} 15. c3 {[%clk 0:01:56]}
15... Nc6 {[%clk 0:02:20.8]} 16. cxd4 {[%clk 0:01:34.2]} 16... Nxd4 {[%clk
0:02:17.7]} 17. Nxd4 {[%clk 0:01:33.7]} 17... Bxd4 {[%clk 0:02:18.6]} 18. Be3
{[%clk 0:01:33.4]} 18... Bxe3 {[%clk 0:01:46.8]} 19. Qxe3 {[%clk 0:01:29]} 19...
Ne5 {[%clk 0:01:45.2]} 20. Qg3 {[%clk 0:01:19.6]} 20... Nc6 {[%clk 0:01:44.3]}
21. Rac1 {[%clk 0:01:06]} 21... Nd4 {[%clk 0:01:41.7]} 22. Qe5 {[%clk
0:00:56.9]} 22... Ke7 {[%clk 0:00:41.7]} 23. Rxc5 {[%clk 0:00:42.6]} 23... Nc6
{[%clk 0:00:39.7]} 24. Qc3 {[%clk 0:00:42.3]} 24... e5 {[%clk 0:00:25.6]} 25.
Rc1 {[%clk 0:00:26.8]} 25... Rad8 {[%clk 0:00:25.7]} 26. Rxe5+ {[%clk 0:00:19]}
26... Kf8 {[%clk 0:00:06.6]} 27. Rd5 {[%clk 0:00:14.1]} 27... Ke7 {[%clk
0:00:02.9]} 28. Rxd8 {[%clk 0:00:10.8]} 28... Rxd8 {[%clk 0:00:03.8]} 29. e5
{[%clk 0:00:10.5]} 29... Nd4 {[%clk 0:00:03.1]} 30. Qc7+ {[%clk 0:00:10.3]}
30... Rd7 {[%clk 0:00:02.2]} 31. Qxb6 {[%clk 0:00:10.3]} 31... axb6 {[%clk
0:00:03.1]} 32. Kf1 {[%clk 0:00:10.7]} 32... Ke6 {[%clk 0:00:03.1]} 33. f4
{[%clk 0:00:10]} 33... g5 {[%clk 0:00:03]} 34. f5+ {[%clk 0:00:05.6]} 34... Kxe5
{[%clk 0:00:03.4]} 35. Re1+ {[%clk 0:00:05.9]} 35... Kf4 {[%clk 0:00:03]} 36.
Re4+ {[%clk 0:00:06.1]} 36... Kg3 {[%clk 0:00:03.3]} 37. Re3+ {[%clk 0:00:06.6]}
37... Kf4 {[%clk 0:00:03.8]} 38. Kf2 {[%clk 0:00:07.1]} 1-0

[Event "*** Titled Tuesday Blitz"]
[Site "Chess.com"]
[Date "2020.04.14"]
[Round "7"]
[White "Everyfishknows"]
[Black "Duong57"]
[Result "0-1"]
[WhiteElo "2343"]
[BlackElo "2223"]
[TimeControl "180+1"]
[EndTime "11:14:27 PDT"]
[Termination "Duong57 won by checkmate"]

1. d4 {[%clk 0:02:57.9]} 1... d5 {[%clk 0:02:58.7]} 2. c4 {[%clk 0:02:57.5]}
2... e6 {[%clk 0:02:58.6]} 3. Nf3 {[%clk 0:02:56.8]} 3... c6 {[%clk 0:02:58.8]}
4. Qc2 {[%clk 0:02:44.4]} 4... Nf6 {[%clk 0:02:57.9]} 5. g3 {[%clk 0:02:43.9]}
5... dxc4 {[%clk 0:02:57.9]} 6. Qxc4 {[%clk 0:02:42.6]} 6... b5 {[%clk
0:02:58.5]} 7. Qc2 {[%clk 0:02:42.2]} 7... Bb7 {[%clk 0:02:59.1]} 8. Bg2 {[%clk
0:02:42.4]} 8... Nbd7 {[%clk 0:02:58.9]} 9. a4 {[%clk 0:02:29.5]} 9... a6 {[%clk
0:02:59]} 10. Nc3 {[%clk 0:02:17.1]} 10... Be7 {[%clk 0:02:57.2]} 11. O-O {[%clk
0:02:16.9]} 11... O-O {[%clk 0:02:56.6]} 12. Rd1 {[%clk 0:01:54.1]} 12... Rc8
{[%clk 0:02:50.2]} 13. e4 {[%clk 0:01:30.9]} 13... b4 {[%clk 0:02:38.8]} 14. Ne2
{[%clk 0:01:13.1]} 14... c5 {[%clk 0:02:38.7]} 15. d5 {[%clk 0:00:47.5]} 15...
exd5 {[%clk 0:02:38.2]} 16. exd5 {[%clk 0:00:48.4]} 16... Bxd5 {[%clk
0:02:28.2]} 17. Nf4 {[%clk 0:00:30.8]} 17... Be4 {[%clk 0:02:26.8]} 18. Qe2
{[%clk 0:00:29.3]} 18... Qb6 {[%clk 0:02:12.9]} 19. a5 {[%clk 0:00:21.4]} 19...
Qb7 {[%clk 0:02:12.4]} 20. b3 {[%clk 0:00:12.5]} 20... Rfe8 {[%clk 0:02:07.1]}
21. Bb2 {[%clk 0:00:12.3]} 21... Bf8 {[%clk 0:02:02.3]} 22. h4 {[%clk 0:00:08]}
22... Bd5 {[%clk 0:01:00.5]} 23. Qd3 {[%clk 0:00:03.4]} 23... Be4 {[%clk
0:00:59.7]} 24. Qe2 {[%clk 0:00:03.7]} 24... Bd5 {[%clk 0:00:43.4]} 25. Qd3
{[%clk 0:00:03.8]} 25... c4 {[%clk 0:00:43.9]} 26. bxc4 {[%clk 0:00:02.3]} 26...
Bxc4 {[%clk 0:00:44.4]} 27. Qd4 {[%clk 0:00:02.1]} 27... Bc5 {[%clk 0:00:44.1]}
28. Qxc4 {[%clk 0:00:01.6]} 28... Bxf2+ {[%clk 0:00:43.7]} 29. Kxf2 {[%clk
0:00:02.5]} 29... Rxc4 {[%clk 0:00:43.9]} 30. Nd4 {[%clk 0:00:02.3]} 30... Qa7
{[%clk 0:00:42.6]} 31. Kg1 {[%clk 0:00:01.9]} 31... Rc2 {[%clk 0:00:39.6]} 32.
Rab1 {[%clk 0:00:01.6]} 32... Ne5 {[%clk 0:00:37.9]} 33. Kh2 {[%clk 0:00:01.1]}
33... Neg4+ {[%clk 0:00:35.9]} 34. Kh3 {[%clk 0:00:01.3]} 34... Nf2+ {[%clk
0:00:35.8]} 35. Kh2 {[%clk 0:00:02]} 35... Nxd1 {[%clk 0:00:32.8]} 36. Rxd1
{[%clk 0:00:02]} 36... Rxb2 {[%clk 0:00:32.3]} 37. Nf5 {[%clk 0:00:02.9]} 37...
Ng4+ {[%clk 0:00:30.2]} 38. Kh3 {[%clk 0:00:03]} 38... Nf2+ {[%clk 0:00:29.8]}
39. Kh2 {[%clk 0:00:02.9]} 39... Ng4+ {[%clk 0:00:29.1]} 40. Kh3 {[%clk
0:00:03.2]} 40... h5 {[%clk 0:00:29.7]} 41. Nxh5 {[%clk 0:00:03.4]} 41... Nf2+
{[%clk 0:00:28.4]} 42. Kh2 {[%clk 0:00:03.5]} 42... Nxd1 {[%clk 0:00:28.6]} 43.
Nfxg7 {[%clk 0:00:04.1]} 43... Qf2 {[%clk 0:00:26.9]} 44. Nf4 {[%clk 0:00:04.6]}
44... Re1 {[%clk 0:00:22.3]} 45. Kh3 {[%clk 0:00:04.8]} 45... Ne3 {[%clk
0:00:20.5]} 46. Ngh5 {[%clk 0:00:03.5]} 46... Rh1+ {[%clk 0:00:20.4]} 47. Bxh1
{[%clk 0:00:02.5]} 47... Qh2# {[%clk 0:00:21]} 0-1

[Event "*** Titled Tuesday Blitz"]
[Site "Chess.com"]
[Date "2020.04.14"]
[Round "7"]
[White "Rsnr"]
[Black "jacky72"]
[Result "0-1"]
[WhiteElo "2855"]
[BlackElo "2709"]
[TimeControl "180+1"]
[EndTime "11:14:28 PDT"]
[Termination "jacky72 won on time"]

1. d4 {[%clk 0:03:00.9]} 1... d5 {[%clk 0:02:18.8]} 2. c4 {[%clk 0:03:00]} 2...
c6 {[%clk 0:02:19.7]} 3. Nf3 {[%clk 0:03:00.2]} 3... Nf6 {[%clk 0:02:19.7]} 4.
Nc3 {[%clk 0:03:00.8]} 4... a6 {[%clk 0:02:19.3]} 5. cxd5 {[%clk 0:03:01]} 5...
cxd5 {[%clk 0:02:17.8]} 6. Bf4 {[%clk 0:03:01.7]} 6... Nc6 {[%clk 0:02:17.6]} 7.
Ne5 {[%clk 0:03:02.4]} 7... e6 {[%clk 0:02:16.9]} 8. e3 {[%clk 0:03:02.5]} 8...
Be7 {[%clk 0:02:15.4]} 9. Bd3 {[%clk 0:03:02.6]} 9... O-O {[%clk 0:02:14.9]} 10.
O-O {[%clk 0:03:02.6]} 10... Nxe5 {[%clk 0:02:14.9]} 11. dxe5 {[%clk 0:03:02.7]}
11... Nd7 {[%clk 0:02:14.3]} 12. Qf3 {[%clk 0:03:02.8]} 12... b5 {[%clk
0:02:11.3]} 13. Qh3 {[%clk 0:03:02.8]} 13... g6 {[%clk 0:02:10.9]} 14. Ne2
{[%clk 0:02:58.1]} 14... Bb7 {[%clk 0:02:06.1]} 15. Nd4 {[%clk 0:02:56.8]} 15...
Nc5 {[%clk 0:02:02.5]} 16. Bc2 {[%clk 0:02:54.9]} 16... Bg5 {[%clk 0:02:02.2]}
17. Qg4 {[%clk 0:02:41.4]} 17... Bxf4 {[%clk 0:01:59.9]} 18. exf4 {[%clk
0:02:42.3]} 18... Kh8 {[%clk 0:01:53.8]} 19. Qe2 {[%clk 0:02:28.3]} 19... Rc8
{[%clk 0:01:53.2]} 20. Rac1 {[%clk 0:02:27.7]} 20... Qb6 {[%clk 0:01:49.3]} 21.
Qe3 {[%clk 0:02:18.6]} 21... Ne4 {[%clk 0:01:44.9]} 22. Rfd1 {[%clk 0:01:53.7]}
22... b4 {[%clk 0:01:34.3]} 23. Bxe4 {[%clk 0:01:19]} 23... dxe4 {[%clk
0:01:34.1]} 24. Nf5 {[%clk 0:01:19.7]} 24... Qxe3 {[%clk 0:01:30.1]} 25. Nxe3
{[%clk 0:01:20.6]} 25... Bd5 {[%clk 0:01:17.8]} 26. b3 {[%clk 0:01:14.4]} 26...
a5 {[%clk 0:01:13.4]} 27. Kf1 {[%clk 0:00:41.2]} 27... a4 {[%clk 0:01:10.1]} 28.
Rxc8 {[%clk 0:00:35.1]} 28... Rxc8 {[%clk 0:01:11]} 29. Nxd5 {[%clk 0:00:35.7]}
29... exd5 {[%clk 0:01:10.8]} 30. Rxd5 {[%clk 0:00:31.8]} 30... Rc2 {[%clk
0:00:55.8]} 31. Rd4 {[%clk 0:00:18.2]} 31... Rxa2 {[%clk 0:00:51.8]} 32. Rxb4
{[%clk 0:00:18]} 32... a3 {[%clk 0:00:51.4]} 33. Ra4 {[%clk 0:00:16.5]} 33...
Kg7 {[%clk 0:00:46.2]} 34. g3 {[%clk 0:00:11.7]} 34... h5 {[%clk 0:00:46.6]} 35.
h4 {[%clk 0:00:12]} 35... Kf8 {[%clk 0:00:46.2]} 36. Rxe4 {[%clk 0:00:09.2]}
36... Rb2 {[%clk 0:00:46.3]} 37. Ra4 {[%clk 0:00:09.2]} 37... Rxb3 {[%clk
0:00:46.3]} 38. Ra7 {[%clk 0:00:09.2]} 38... Ke8 {[%clk 0:00:43.7]} 39. Ke2
{[%clk 0:00:09.3]} 39... Rc3 {[%clk 0:00:43.2]} 40. Kd2 {[%clk 0:00:08.9]} 40...
Rf3 {[%clk 0:00:43.1]} 41. Ke2 {[%clk 0:00:08.9]} 41... Rb3 {[%clk 0:00:43.4]}
42. Ra6 {[%clk 0:00:07.6]} 42... Ke7 {[%clk 0:00:43.2]} 43. Ra7+ {[%clk
0:00:08.2]} 43... Ke6 {[%clk 0:00:42.3]} 44. Ra6+ {[%clk 0:00:08.9]} 44... Kd5
{[%clk 0:00:40.9]} 45. Ra7 {[%clk 0:00:08.6]} 45... Rb2+ {[%clk 0:00:38.1]} 46.
Kf3 {[%clk 0:00:08]} 46... a2 {[%clk 0:00:39]} 47. Ra4 {[%clk 0:00:04.7]} 47...
Kc5 {[%clk 0:00:37]} 48. Ra7 {[%clk 0:00:04.2]} 48... Kb4 {[%clk 0:00:35.1]} 49.
g4 {[%clk 0:00:04.8]} 49... Rb3+ {[%clk 0:00:35]} 50. Ke4 {[%clk 0:00:04.3]}
50... Ra3 {[%clk 0:00:35.9]} 0-1

[Event "*** Titled Tuesday Blitz"]
[Site "Chess.com"]
[Date "2020.04.14"]
[Round "7"]
[White "Mfcyryd"]
[Black "Incognito_Knight"]
[Result "1-0"]
[WhiteElo "2512"]
[BlackElo "2745"]
[TimeControl "180+1"]
[EndTime "11:14:28 PDT"]
[Termination "Mfcyryd won on time"]

1. e4 {[%clk 0:03:00.9]} 1... c5 {[%clk 0:02:59]} 2. Nf3 {[%clk 0:03:00]} 2...
e6 {[%clk 0:02:59.3]} 3. d4 {[%clk 0:03:00.8]} 3... cxd4 {[%clk 0:03:00.2]} 4.
Nxd4 {[%clk 0:03:01]} 4... a6 {[%clk 0:03:00.7]} 5. g3 {[%clk 0:03:01.2]} 5...
b5 {[%clk 0:02:58.5]} 6. Bg2 {[%clk 0:03:00.3]} 6... Bb7 {[%clk 0:02:58.7]} 7.
O-O {[%clk 0:02:58.9]} 7... Qc7 {[%clk 0:02:58.7]} 8. a4 {[%clk 0:02:57.3]} 8...
b4 {[%clk 0:02:57.8]} 9. c4 {[%clk 0:02:54]} 9... d6 {[%clk 0:02:50.2]} 10. b3
{[%clk 0:02:47]} 10... Nf6 {[%clk 0:02:48.1]} 11. Re1 {[%clk 0:02:44.2]} 11...
Nbd7 {[%clk 0:02:47.1]} 12. h3 {[%clk 0:02:35.6]} 12... Be7 {[%clk 0:02:47.1]}
13. Nd2 {[%clk 0:02:30.3]} 13... O-O {[%clk 0:02:45.6]} 14. a5 {[%clk
0:02:26.5]} 14... Nc5 {[%clk 0:02:41.4]} 15. Re3 {[%clk 0:02:15.8]} 15... Rfe8
{[%clk 0:02:35.1]} 16. Bb2 {[%clk 0:02:11.8]} 16... Bf8 {[%clk 0:02:31.2]} 17.
Qc2 {[%clk 0:02:03.1]} 17... Rac8 {[%clk 0:02:15.3]} 18. Qb1 {[%clk 0:01:55.6]}
18... d5 {[%clk 0:02:12.6]} 19. exd5 {[%clk 0:01:51.6]} 19... exd5 {[%clk
0:02:12.9]} 20. Nf5 {[%clk 0:01:45.6]} 20... Nce4 {[%clk 0:01:50.2]} 21. Nxe4
{[%clk 0:01:35.3]} 21... Nxe4 {[%clk 0:01:51.1]} 22. cxd5 {[%clk 0:01:32.1]}
22... Nc3 {[%clk 0:01:33.1]} 23. Qd3 {[%clk 0:01:30.2]} 23... Rxe3 {[%clk
0:01:17.5]} 24. Nxe3 {[%clk 0:01:31.1]} 24... Rd8 {[%clk 0:01:08.5]} 25. Bxc3
{[%clk 0:01:21.7]} 25... bxc3 {[%clk 0:01:04.6]} 26. Nc4 {[%clk 0:01:19.2]}
26... Bb4 {[%clk 0:01:01.1]} 27. d6 {[%clk 0:01:18.6]} 27... Bxd6 {[%clk
0:00:27.8]} 28. Qxc3 {[%clk 0:00:54.2]} 28... Bxg2 {[%clk 0:00:22.9]} 29. Kxg2
{[%clk 0:00:54.7]} 29... Bc5 {[%clk 0:00:16.5]} 30. Rc1 {[%clk 0:00:48.8]} 30...
Qb7+ {[%clk 0:00:14.2]} 31. Qf3 {[%clk 0:00:47.4]} 31... Qe7 {[%clk 0:00:07]}
32. Nb6 {[%clk 0:00:40.2]} 32... g6 {[%clk 0:00:05.2]} 33. Nd5 {[%clk
0:00:32.4]} 33... Qf8 {[%clk 0:00:03.9]} 34. Rd1 {[%clk 0:00:28.3]} 34... Bd6
{[%clk 0:00:02.2]} 35. Qd3 {[%clk 0:00:25.4]} 35... Be5 {[%clk 0:00:01.2]} 36.
Qxa6 {[%clk 0:00:22.7]} 1-0

[Event "*** Titled Tuesday Blitz"]
[Site "Chess.com"]
[Date "2020.04.14"]
[Round "7"]
[White "grzechu96"]
[Black "Kiborg95"]
[Result "1-0"]
[WhiteElo "2606"]
[BlackElo "2767"]
[TimeControl "180+1"]
[EndTime "11:14:28 PDT"]
[Termination "grzechu96 won by resignation"]

1. e4 {[%clk 0:03:00.9]} 1... d6 {[%clk 0:03:00.4]} 2. d4 {[%clk 0:03:00.6]}
2... Nf6 {[%clk 0:03:01.1]} 3. Nc3 {[%clk 0:03:00.7]} 3... e5 {[%clk 0:03:01.7]}
4. Nf3 {[%clk 0:03:00.9]} 4... Nbd7 {[%clk 0:03:02.1]} 5. Bc4 {[%clk 0:03:00.6]}
5... Be7 {[%clk 0:03:02.8]} 6. a4 {[%clk 0:03:00]} 6... O-O {[%clk 0:03:03.3]}
7. O-O {[%clk 0:03:00]} 7... c6 {[%clk 0:03:03.9]} 8. Re1 {[%clk 0:02:59.7]}
8... h6 {[%clk 0:03:04]} 9. h3 {[%clk 0:02:58.1]} 9... Re8 {[%clk 0:03:03.7]}
10. Be3 {[%clk 0:02:56.5]} 10... exd4 {[%clk 0:03:04.1]} 11. Bxd4 {[%clk
0:02:48.6]} 11... Nf8 {[%clk 0:03:03.8]} 12. Qd2 {[%clk 0:02:44.7]} 12... Be6
{[%clk 0:03:03.6]} 13. Bf1 {[%clk 0:02:36.3]} 13... N6d7 {[%clk 0:03:03]} 14.
Be3 {[%clk 0:02:16.3]} 14... Ne5 {[%clk 0:02:11.2]} 15. Nd4 {[%clk 0:02:15.8]}
15... Bc4 {[%clk 0:02:11.5]} 16. b3 {[%clk 0:02:00.8]} 16... Bxf1 {[%clk
0:02:11.2]} 17. Rxf1 {[%clk 0:02:01.4]} 17... Qa5 {[%clk 0:01:31]} 18. Nf5
{[%clk 0:01:45.3]} 18... Nfg6 {[%clk 0:01:04.4]} 19. Rad1 {[%clk 0:01:14.2]}
19... Bf8 {[%clk 0:00:56]} 20. f3 {[%clk 0:00:49.1]} 20... Rad8 {[%clk
0:00:52.8]} 21. h4 {[%clk 0:00:49.3]} 21... Ne7 {[%clk 0:00:45.8]} 22. Nxe7+
{[%clk 0:00:35.6]} 22... Bxe7 {[%clk 0:00:46.7]} 23. Nd5 {[%clk 0:00:32.7]}
23... Qxd2 {[%clk 0:00:45.5]} 24. Nxe7+ {[%clk 0:00:33.2]} 24... Rxe7 {[%clk
0:00:46.4]} 25. Rxd2 {[%clk 0:00:33.7]} 25... a6 {[%clk 0:00:32.9]} 26. Rfd1
{[%clk 0:00:29.1]} 26... d5 {[%clk 0:00:28.1]} 27. Bc5 {[%clk 0:00:23.6]} 27...
Red7 {[%clk 0:00:26.2]} 28. Bb6 {[%clk 0:00:23.9]} 28... Rc8 {[%clk 0:00:26.7]}
29. exd5 {[%clk 0:00:24.4]} 29... cxd5 {[%clk 0:00:27]} 30. Rxd5 {[%clk
0:00:24.9]} 30... Rxd5 {[%clk 0:00:24.3]} 31. Rxd5 {[%clk 0:00:25.8]} 31... f6
{[%clk 0:00:24.7]} 32. Rd8+ {[%clk 0:00:22.8]} 32... Rxd8 {[%clk 0:00:24.4]} 33.
Bxd8 {[%clk 0:00:23.7]} 33... h5 {[%clk 0:00:24.5]} 34. Kf2 {[%clk 0:00:23.3]}
34... Kf7 {[%clk 0:00:24.9]} 35. Ke3 {[%clk 0:00:21.6]} 35... Ke6 {[%clk
0:00:25.5]} 36. Bc7 {[%clk 0:00:20.3]} 36... Nc6 {[%clk 0:00:25.3]} 37. Bg3
{[%clk 0:00:17.8]} 37... Nb4 {[%clk 0:00:24.2]} 38. c3 {[%clk 0:00:14.5]} 38...
Nc6 {[%clk 0:00:24.3]} 39. Kd3 {[%clk 0:00:13.5]} 39... b5 {[%clk 0:00:23.7]}
40. axb5 {[%clk 0:00:13.3]} 40... axb5 {[%clk 0:00:24.6]} 41. Be1 {[%clk
0:00:12.9]} 41... Kd5 {[%clk 0:00:22.8]} 42. c4+ {[%clk 0:00:13.1]} 42... bxc4+
{[%clk 0:00:23.7]} 43. bxc4+ {[%clk 0:00:14]} 43... Kc5 {[%clk 0:00:23.5]} 44.
Kc3 {[%clk 0:00:12.4]} 44... g6 {[%clk 0:00:21]} 45. Bf2+ {[%clk 0:00:12.9]}
45... Kd6 {[%clk 0:00:21.4]} 46. Bd4 {[%clk 0:00:12.6]} 46... Ke6 {[%clk
0:00:21.1]} 47. Kd3 {[%clk 0:00:11.7]} 47... Kd6 {[%clk 0:00:20.8]} 48. Bxf6
{[%clk 0:00:10.2]} 1-0

[Event "*** Titled Tuesday Blitz"]
[Site "Chess.com"]
[Date "2020.04.14"]
[Round "7"]
[White "allvim"]
[Black "dragos420"]
[Result "0-1"]
[WhiteElo "2291"]
[BlackElo "2510"]
[TimeControl "180+1"]
[EndTime "11:14:28 PDT"]
[Termination "dragos420 won on time"]

1. e4 {[%clk 0:03:00.9]} 1... e5 {[%clk 0:02:59.3]} 2. Nf3 {[%clk 0:02:57.2]}
2... Nc6 {[%clk 0:02:59.7]} 3. Bc4 {[%clk 0:02:56.7]} 3... Nf6 {[%clk
0:02:59.5]} 4. O-O {[%clk 0:02:55.9]} 4... h6 {[%clk 0:02:58.4]} 5. d4 {[%clk
0:02:51.3]} 5... exd4 {[%clk 0:02:47.9]} 6. e5 {[%clk 0:02:50.4]} 6... d5 {[%clk
0:02:45.6]} 7. Bb5 {[%clk 0:02:24.6]} 7... Ne4 {[%clk 0:02:41.7]} 8. Nxd4 {[%clk
0:02:13.8]} 8... Bd7 {[%clk 0:02:41.1]} 9. Bxc6 {[%clk 0:02:05.7]} 9... bxc6
{[%clk 0:02:42]} 10. Nc3 {[%clk 0:02:01.8]} 10... Nxc3 {[%clk 0:02:38.5]} 11.
bxc3 {[%clk 0:02:02]} 11... Be7 {[%clk 0:02:28.5]} 12. Re1 {[%clk 0:01:54.1]}
12... c5 {[%clk 0:02:26.4]} 13. e6 {[%clk 0:01:51.7]} 13... cxd4 {[%clk
0:02:19.9]} 14. exd7+ {[%clk 0:01:51.3]} 14... Qxd7 {[%clk 0:02:20.8]} 15. Ba3
{[%clk 0:01:20.9]} 15... O-O {[%clk 0:02:17.7]} 16. Bxe7 {[%clk 0:01:18.3]}
16... Rfe8 {[%clk 0:02:17]} 17. Bh4 {[%clk 0:01:15.1]} 17... dxc3 {[%clk
0:02:15.9]} 18. Qd3 {[%clk 0:01:11.1]} 18... d4 {[%clk 0:02:10.8]} 19. Rad1
{[%clk 0:01:07]} 19... c5 {[%clk 0:02:03.2]} 20. Qc4 {[%clk 0:01:01.3]} 20...
Qf5 {[%clk 0:01:55.1]} 21. Qb3 {[%clk 0:00:34.9]} 21... Rac8 {[%clk 0:01:42.8]}
22. Bg3 {[%clk 0:00:31.7]} 22... Qd7 {[%clk 0:01:27.7]} 23. Rxe8+ {[%clk
0:00:26.8]} 23... Rxe8 {[%clk 0:01:18.2]} 24. h3 {[%clk 0:00:25.3]} 24... Qe6
{[%clk 0:01:10.4]} 25. Qb5 {[%clk 0:00:15]} 25... Qe2 {[%clk 0:00:58.7]} 26. Qb1
{[%clk 0:00:14.8]} 26... h5 {[%clk 0:00:52.9]} 27. f3 {[%clk 0:00:13.7]} 27...
Qc4 {[%clk 0:00:50]} 28. Re1 {[%clk 0:00:12.1]} 28... Rxe1+ {[%clk 0:00:45.3]}
29. Bxe1 {[%clk 0:00:13]} 29... g6 {[%clk 0:00:44]} 30. Bf2 {[%clk 0:00:11.1]}
30... a5 {[%clk 0:00:43.1]} 31. Qb8+ {[%clk 0:00:09.2]} 31... Kg7 {[%clk
0:00:41.9]} 32. Bg3 {[%clk 0:00:08.1]} 32... Qe6 {[%clk 0:00:11.3]} 33. Qe5+
{[%clk 0:00:06.5]} 33... Kg8 {[%clk 0:00:09.1]} 34. Qxe6 {[%clk 0:00:05.2]}
34... fxe6 {[%clk 0:00:10]} 35. Bd6 {[%clk 0:00:04.8]} 35... c4 {[%clk
0:00:08.2]} 36. Kf2 {[%clk 0:00:04.1]} 36... d3 {[%clk 0:00:06.1]} 37. cxd3
{[%clk 0:00:02.3]} 37... cxd3 {[%clk 0:00:07]} 0-1

[Event "*** Titled Tuesday Blitz"]
[Site "Chess.com"]
[Date "2020.04.14"]
[Round "7"]
[White "ChessFunMaker"]
[Black "Kirill_Klukin"]
[Result "0-1"]
[WhiteElo "2376"]
[BlackElo "2692"]
[TimeControl "180+1"]
[EndTime "11:14:30 PDT"]
[Termination "Kirill_Klukin won by checkmate"]

1. c4 {[%clk 0:03:00.9]} 1... e5 {[%clk 0:02:59.6]} 2. g3 {[%clk 0:03:00.6]}
2... Nf6 {[%clk 0:03:00]} 3. Bg2 {[%clk 0:02:58.8]} 3... d5 {[%clk 0:03:00.5]}
4. cxd5 {[%clk 0:02:59.3]} 4... Nxd5 {[%clk 0:03:01.4]} 5. Nf3 {[%clk
0:02:59.7]} 5... Nc6 {[%clk 0:03:01.1]} 6. O-O {[%clk 0:02:59.2]} 6... Be7
{[%clk 0:03:00.5]} 7. d4 {[%clk 0:02:58.1]} 7... exd4 {[%clk 0:02:24.4]} 8. Nxd4
{[%clk 0:02:57.7]} 8... O-O {[%clk 0:02:25]} 9. Nxc6 {[%clk 0:02:36.8]} 9...
bxc6 {[%clk 0:02:25.9]} 10. Qc2 {[%clk 0:02:35.2]} 10... Bb7 {[%clk 0:02:25.1]}
11. a3 {[%clk 0:02:29]} 11... a5 {[%clk 0:02:22.4]} 12. Rd1 {[%clk 0:02:20.9]}
12... Qc8 {[%clk 0:02:22]} 13. e4 {[%clk 0:02:19.5]} 13... Nb6 {[%clk
0:02:21.5]} 14. Bf4 {[%clk 0:02:15.9]} 14... a4 {[%clk 0:02:09.9]} 15. Nd2
{[%clk 0:02:15]} 15... Ra5 {[%clk 0:01:39.6]} 16. e5 {[%clk 0:01:56.7]} 16...
Nd5 {[%clk 0:01:37.8]} 17. Nc4 {[%clk 0:01:30]} 17... Rc5 {[%clk 0:01:34.3]} 18.
Qxa4 {[%clk 0:01:00.7]} 18... Nxf4 {[%clk 0:01:34.3]} 19. gxf4 {[%clk
0:01:01.6]} 19... h6 {[%clk 0:01:10.8]} 20. Rac1 {[%clk 0:00:41.8]} 20... Rd8
{[%clk 0:01:02.8]} 21. Na5 {[%clk 0:00:33.7]} 21... Rxd1+ {[%clk 0:00:37.4]} 22.
Rxd1 {[%clk 0:00:33]} 22... Qa8 {[%clk 0:00:38]} 23. b4 {[%clk 0:00:29.4]} 23...
Rc3 {[%clk 0:00:38.3]} 24. h3 {[%clk 0:00:11.7]} 24... Bh4 {[%clk 0:00:35.6]}
25. Rd7 {[%clk 0:00:09.7]} 25... Qa7 {[%clk 0:00:30.1]} 26. Rd2 {[%clk
0:00:09.2]} 26... Rc1+ {[%clk 0:00:28.9]} 27. Kh2 {[%clk 0:00:08.3]} 27... Bxf2
{[%clk 0:00:28.4]} 28. Rc2 {[%clk 0:00:04.7]} 28... Bg1+ {[%clk 0:00:25.6]} 29.
Kg3 {[%clk 0:00:04.5]} 29... Qe3+ {[%clk 0:00:23.8]} 30. Bf3 {[%clk 0:00:04.1]}
30... Qe1+ {[%clk 0:00:10.6]} 31. Kg2 {[%clk 0:00:04.4]} 31... Ba6 {[%clk
0:00:08.8]} 32. Nc4 {[%clk 0:00:03.5]} 32... Bb5 {[%clk 0:00:04.3]} 33. Qa8+
{[%clk 0:00:03]} 33... Kh7 {[%clk 0:00:04.6]} 34. Rxc1 {[%clk 0:00:02.8]} 34...
Qxc1 {[%clk 0:00:05]} 35. Na5 {[%clk 0:00:02.3]} 35... Qf1+ {[%clk 0:00:04.6]}
36. Kg3 {[%clk 0:00:02]} 36... Bf2+ {[%clk 0:00:04.9]} 37. Kg4 {[%clk
0:00:01.1]} 37... Qg1+ {[%clk 0:00:05.3]} 38. Kf5 {[%clk 0:00:01.3]} 38... Qg6#
{[%clk 0:00:05.4]} 0-1